fUSD/lending_fUSD_20250305
["ID","MTS","AMOUNT","RATE_DAILY","PERIOD"]
[355439507,1741158619798,-496.55561175,0.00011796,2]
[355439508,1741158619821,-500.0,0.00011797,2]
[355439509,1741158619844,-699.23,0.00011797,2]
[355439510,1741158619867,-913.11,0.00011797,2]
[355439511,1741158619890,-159.377111,0.00011797,2]
[355439512,1741158619915,-500.0,0.00011797,2]
[355439513,1741158619941,-1539.12,0.00011797,2]
[355439514,1741158619965,-500.0,0.00011797,2]
[355439515,1741158619990,-588.24,0.00011797,2]
[355439516,1741158620016,-500.0,0.00011797,2]
[355439517,1741158620042,-162.97655,0.00011797,2]
[355439518,1741158620067,-500.0,0.00011797,2]
[355439519,1741158620091,-500.0,0.00011797,2]
[355439520,1741158620116,-753.08,0.00011797,2]
[355439521,1741158620139,-500.0,0.00011797,2]
[355439522,1741158620162,-500.0,0.00011797,2]
[355439523,1741158620185,-370.99676826,0.00011797,2]
[355439524,1741158620209,-1189.09,0.00011797,2]
[355439525,1741158620232,-407.11943972,0.00011797,2]
[355439526,1741158620255,-692.1,0.00011797,2]
[355439527,1741158620278,-500.0,0.00011797,2]
[355439528,1741158620304,-500.0,0.00011797,2]
[355439529,1741158620327,-697.66,0.00011797,2]
[355439530,1741158620351,-627.78,0.00011797,2]
[355439531,1741158620374,-500.0,0.00011797,2]
[355439532,1741158620397,-2059.36,0.00011797,2]
[355439533,1741158620421,-500.0,0.00011797,2]
[355439534,1741158620444,-828.42,0.00011797,2]
[355439535,1741158620470,-500.0,0.00011797,2]
[355439536,1741158620493,-797.07,0.00011797,2]
[355439537,1741158620516,-815.91,0.00011797,2]
[355439538,1741158620540,-2379.94,0.00011797,2]
[355439539,1741158620565,-500.0,0.00011797,2]
[355439540,1741158620588,-736.49,0.00011797,2]
[355439541,1741158620613,-8492.3561703,0.00011797,2]
[355439542,1741158620637,-1428.54,0.00011797,2]
[355439543,1741158620660,-500.0,0.00011797,2]
[355439544,1741158620685,-817.16,0.00011797,2]
[355439545,1741158620709,-13963.42,0.00011797,2]
[355439546,1741158620732,-509.03185931,0.00011797,2]
[355439547,1741158620756,-500.0,0.00011797,2]
[355439548,1741158620781,-560.93,0.00011797,2]
[355439549,1741158620811,-500.0,0.00011797,2]
[355439550,1741158620836,-766.11,0.00011797,2]
[355439551,1741158620863,-500.0,0.00011797,2]
[355439552,1741158620890,-500.0,0.00011797,2]
[355439553,1741158620916,-500.0,0.00011797,2]
[355439554,1741158620940,-500.0,0.00011797,2]
[355439555,1741158620964,-500.0,0.00011797,2]
[355439556,1741158620987,-843.36,0.00011797,2]
[355439557,1741158621011,-1182.42,0.00011797,2]
[355439558,1741158621034,-1143.34,0.00011797,2]
[355439559,1741158621060,-500.0,0.00011797,2]
[355439560,1741158621083,-500.0,0.00011797,2]
[355439561,1741158621106,-736.39,0.00011797,2]
[355439562,1741158621134,-500.0,0.00011797,2]
[355439563,1741158621158,-1832.34,0.00011797,2]
[355439564,1741158621183,-590.29,0.00011797,2]
[355439565,1741158621209,-3081.05,0.00011797,2]
[355439566,1741158621233,-500.0,0.00011797,2]
[355439567,1741158621258,-906.01,0.00011797,2]
[355439568,1741158621282,-500.0,0.00011797,2]
[355439569,1741158621306,-500.0,0.00011797,2]
[355439570,1741158621330,-1267.88,0.00011797,2]
[355439571,1741158621357,-8871.17,0.00011797,2]
[355439572,1741158621380,-2076.26,0.00011797,2]
[355439573,1741158621405,-1441.45,0.00011797,2]
[355439574,1741158621429,-500.0,0.00011797,2]
[355439575,1741158621455,-678.8,0.00011797,2]
[355439576,1741158621482,-500.0,0.00011797,2]
[355439577,1741158621507,-1366.02,0.00011797,2]
[355439578,1741158621531,-534.64947112,0.00011797,2]
[355439579,1741158621555,-715.26,0.00011797,2]
[355439580,1741158621579,-500.0,0.00011797,2]
[355439581,1741158621603,-500.0,0.00011797,2]
[355439582,1741158621628,-2359.27,0.00011797,2]
[355439583,1741158621651,-500.0,0.00011797,2]
[355439584,1741158621675,-1080.2,0.00011797,2]
[355439585,1741158621698,-918.33,0.00011797,2]
[355439586,1741158621723,-2389.57,0.00011797,2]
[355439587,1741158621748,-2464.58,0.00011797,2]
[355439588,1741158621772,-2281.23,0.00011797,2]
[355439589,1741158621797,-887.7,0.00011797,2]
[355439590,1741158621822,-2255.7,0.00011797,2]
[355439591,1741158621842,-839.96,0.00011797,2]
[355439592,1741158621865,-500.0,0.00011797,2]
[355439593,1741158621889,-3277.2,0.00011797,2]
[355439594,1741158621913,-893.48,0.00011797,2]
[355439595,1741158621939,-500.0,0.00011797,2]
[355439596,1741158621965,-2012.23,0.00011797,2]
[355439597,1741158622000,-856.29,0.00011797,2]
[355439598,1741158622050,-500.0,0.00011797,2]
[355439599,1741158622102,-3205.07,0.00011797,2]
[355439600,1741158622152,-3023.44,0.00011797,2]
[355439601,1741158622193,-500.0,0.00011797,2]
[355439602,1741158622217,-2291.51,0.00011797,2]
[355439603,1741158622242,-5260.24,0.00011797,2]
[355439604,1741158622266,-959.01,0.00011797,2]
[355439605,1741158622290,-500.0,0.00011797,2]
[355439606,1741158622316,-1927.74,0.00011797,2]
[355439607,1741158622341,-1871.69,0.00011797,2]
[355439608,1741158622366,-500.0,0.00011797,2]
[355439609,1741158622389,-500.0,0.00011797,2]
[355439610,1741158622412,-511.52761868,0.00011797,2]
[355439611,1741158622436,-1749.31,0.00011797,2]
[355439612,1741158622463,-1034.14,0.00011797,2]
[355439613,1741158622488,-2813.29,0.00011797,2]
[355439614,1741158622514,-2451.65,0.00011797,2]
[355439615,1741158622539,-500.0,0.00011797,2]
[355439616,1741158622564,-500.0,0.00011797,2]
[355439617,1741158622589,-1705.58,0.00011797,2]
[355439618,1741158622615,-500.0,0.00011797,2]
[355439619,1741158622641,-500.0,0.00011797,2]
[355439620,1741158622665,-500.0,0.00011797,2]
[355439621,1741158622690,-4210.73,0.00011797,2]
[355439622,1741158622716,-1062.81,0.00011797,2]
[355439623,1741158622739,-1356.24,0.00011797,2]
[355439624,1741158622762,-500.0,0.00011797,2]
[355439625,1741158622787,-9810.68,0.00011797,2]
[355439626,1741158622812,-7170.5,0.00011797,2]
[355439627,1741158622836,-500.0,0.00011797,2]
[355439628,1741158622860,-500.0,0.00011797,2]
[355439629,1741158622884,-500.0,0.00011797,2]
[355439630,1741158622908,-2947.16,0.00011797,2]
[355439631,1741158622932,-500.0,0.00011797,2]
[355439632,1741158622957,-864.64,0.00011797,2]
[355439633,1741158622989,-500.0,0.00011797,2]
[355439634,1741158623030,-1171.51,0.00011797,2]
[355439635,1741158623056,-1217.64,0.00011797,2]
[355439636,1741158623080,-951.38,0.00011797,2]
[355439637,1741158623106,-500.0,0.00011797,2]
[355439638,1741158623131,-500.0,0.00011797,2]
[355439639,1741158623155,-3114.95,0.00011797,2]
[355439640,1741158623178,-500.0,0.00011797,2]
[355439641,1741158623202,-2441.94,0.00011797,2]
[355439642,1741158623446,-3229.78,0.00011797,2]
[355439643,1741158623484,-1821.93,0.00011797,2]
[355439644,1741158623512,-500.0,0.00011797,2]
[355439645,1741158623541,-3119.45,0.00011797,2]
[355439646,1741158623569,-1761.82,0.00011797,2]
[355439647,1741158623595,-916.11,0.00011797,2]
[355439648,1741158623621,-1762.16,0.00011797,2]
[355439649,1741158623646,-500.0,0.00011797,2]
[355439650,1741158623673,-500.0,0.00011797,2]
[355439651,1741158623699,-2250.65,0.00011797,2]
[355439652,1741158623724,-500.0,0.00011797,2]
[355439653,1741158623750,-1794.5,0.00011797,2]
[355439654,1741158623779,-500.0,0.00011797,2]
[355439655,1741158623813,-2278.67,0.00011797,2]
[355439656,1741158623843,-8544.21,0.00011797,2]
[355439657,1741158623872,-1460.12,0.00011797,2]
[355439658,1741158623900,-1030.17,0.00011797,2]
[355439659,1741158623930,-774.44,0.00011797,2]
[355439660,1741158623957,-500.0,0.00011797,2]
[355439661,1741158623985,-500.0,0.00011797,2]
[355439662,1741158624012,-500.0,0.00011797,2]
[355439663,1741158624041,-5958.66,0.00011797,2]
[355439664,1741158624070,-4785.53,0.00011797,2]
[355439665,1741158624099,-4609.02,0.00011797,2]
[355439666,1741158624125,-500.0,0.00011797,2]
[355439667,1741158624154,-924.94,0.00011797,2]
[355439668,1741158624181,-500.0,0.00011797,2]
[355439669,1741158624211,-544.69227145,0.00011797,2]
[355439670,1741158624237,-2897.3,0.00011797,2]
[355439671,1741158624263,-9765.07,0.00011797,2]
[355439672,1741158624287,-1195.55,0.00011797,2]
[355439673,1741158624311,-1150.75,0.00011797,2]
[355439674,1741158624335,-3529.48,0.00011797,2]
[355439675,1741158624358,-3799.96,0.00011797,2]
[355439676,1741158624382,-1181.89,0.00011797,2]
[355439677,1741158624406,-500.0,0.00011797,2]
[355439678,1741158624430,-2023.64,0.00011797,2]
[355439679,1741158624455,-5737.46,0.00011797,2]
[355439680,1741158624481,-3562.6,0.00011797,2]
[355439681,1741158624506,-3205.74,0.00011797,2]
[355439682,1741158624529,-500.0,0.00011797,2]
[355439683,1741158624554,-705.63,0.00011797,2]
[355439684,1741158624577,-7181.65,0.00011797,2]
[355439685,1741158624601,-382.17254349,0.00011797,2]
[355439686,1741158624624,-993.5,0.00011797,2]
[355439687,1741158624648,-1922.57,0.00011797,2]
[355439688,1741158624671,-500.0,0.00011797,2]
[355439689,1741158624694,-500.0,0.00011797,2]
[355439690,1741158624718,-500.0,0.00011797,2]
[355439691,1741158624742,-831.65,0.00011797,2]
[355439692,1741158624765,-500.0,0.00011797,2]
[355439693,1741158624788,-768.69,0.00011797,2]
[355439694,1741158624813,-1515.09,0.00011797,2]
[355439695,1741158624837,-500.0,0.00011797,2]
[355439696,1741158624861,-500.0,0.00011797,2]
[355439697,1741158624885,-2589.93,0.00011797,2]
[355439698,1741158624909,-500.0,0.00011797,2]
[355439699,1741158624934,-5465.05,0.00011797,2]
[355439700,1741158624958,-543.02341965,0.00011797,2]
[355439701,1741158624982,-3255.78,0.00011797,2]
[355439702,1741158625007,-704.29,0.00011797,2]
[355439703,1741158625030,-1312.42,0.00011797,2]
[355439704,1741158625054,-2648.46,0.00011798,2]
[355439705,1741158625079,-858.96,0.00011798,2]
[355439706,1741158625104,-2842.69,0.00011798,2]
[355439707,1741158625128,-892.46,0.00011798,2]
[355439708,1741158625151,-1967.71,0.00011798,2]
[355439709,1741158625174,-500.0,0.00011798,2]
[355439710,1741158625205,-1106.99,0.00011798,2]
[355439711,1741158625229,-1372.01,0.00011798,2]
[355439712,1741158625254,-1595.7,0.00011798,2]
[355439713,1741158625279,-1048.43,0.00011798,2]
[355439714,1741158625303,-500.0,0.00011798,2]
[355439715,1741158625327,-506.13651722,0.00011798,2]
[355439716,1741158625350,-151.0,0.00011798,2]
[355439717,1741158625373,-211.100161,0.00011798,2]
[355439718,1741158625395,-2228.36,0.00011798,2]
[355439719,1741158625418,-506.59832973,0.00011798,2]
[355439720,1741158625444,-1546.34,0.00011798,2]
[355439721,1741158625478,-2533.49,0.00011798,2]
[355439722,1741158625504,-2154.6,0.00011798,2]
[355439723,1741158625529,-500.0,0.00011798,2]
[355439724,1741158625556,-500.0,0.00011798,2]
[355439725,1741158625581,-2039.81,0.00011798,2]
[355439726,1741158625605,-500.0,0.00011798,2]
[355439727,1741158625629,-2776.78,0.00011798,2]
[355439728,1741158625654,-1355.73,0.00011798,2]
[355439729,1741158625679,-1613.3,0.00011798,2]
[355439730,1741158625704,-1528.94,0.00011798,2]
[355439731,1741158625728,-1576.93,0.00011798,2]
[355439732,1741158625753,-1101.95,0.00011798,2]
[355439733,1741158625776,-551.46904506,0.00011798,2]
[355439734,1741158625802,-500.0,0.00011798,2]
[355439735,1741158625826,-819.19,0.00011798,2]
[355439736,1741158625849,-1570.55,0.00011798,2]
[355439737,1741158625874,-3644.96,0.00011798,2]
[355439738,1741158625898,-1208.05,0.00011798,2]
[355439739,1741158625922,-865.86,0.00011798,2]
[355439740,1741158625946,-6199.24,0.00011798,2]
[355439741,1741158625971,-877.92,0.00011798,2]
[355439742,1741158625996,-40985.49,0.00011798,2]
[355439743,1741158626020,-1417.6,0.00011798,2]
[355439744,1741158626047,-1436.31,0.00011798,2]
[355439745,1741158626071,-8874.07,0.00011798,2]
[355439746,1741158626097,-5280.05,0.00011798,2]
[355439747,1741158626121,-500.0,0.00011798,2]
[355439748,1741158626146,-1063.78,0.00011798,2]
[355439749,1741158626170,-1692.02,0.00011798,2]
[355439750,1741158626194,-500.0,0.00011798,2]
[355439751,1741158626219,-2030.69,0.00011798,2]
[355439752,1741158626244,-1393.77,0.00011798,2]
[355439753,1741158626268,-4344.1,0.00011798,2]
[355439754,1741158626291,-10978.62,0.00011798,2]
[355439755,1741158626318,-2051.83,0.00011798,2]
[355439756,1741158626343,-6351.54,0.00011798,2]
[355439757,1741158626368,-8653.08,0.00011798,2]
[355439758,1741158626392,-1387.34,0.00011798,2]
[355439759,1741158626416,-1553.25,0.00011798,2]
[355439760,1741158626442,-2919.54,0.00011798,2]
[355439761,1741158626470,-500.0,0.00011798,2]
[355439762,1741158626497,-2823.53,0.00011798,2]
[355439763,1741158626520,-6085.46,0.00011798,2]
[355439764,1741158626546,-2237.3,0.00011798,2]
[355439765,1741158626569,-500.0,0.00011798,2]
[355439766,1741158626594,-3001.54,0.00011798,2]
[355439767,1741158626619,-7496.85,0.00011798,2]
[355439768,1741158626643,-1763.36,0.00011798,2]
[355439769,1741158626669,-500.0,0.00011798,2]
[355439770,1741158626693,-1901.49,0.00011798,2]
[355439771,1741158626719,-500.0,0.00011798,2]
[355439772,1741158626744,-6275.75,0.00011798,2]
[355439773,1741158626769,-1666.16,0.00011798,2]
[355439774,1741158626794,-551.83,0.00011798,2]
[355439775,1741158626820,-1299.91,0.00011798,2]
[355439776,1741158626845,-1737.3,0.00011798,2]
[355439777,1741158626871,-1581.49,0.00011798,2]
[355439778,1741158626896,-778.51,0.00011798,2]
[355439779,1741158626921,-936.17,0.00011798,2]
[355439780,1741158626946,-3303.59,0.00011798,2]
[355439781,1741158626970,-500.0,0.00011798,2]
[355439782,1741158626994,-3485.94,0.00011798,2]
[355439783,1741158627017,-1793.05,0.00011798,2]
[355439784,1741158627042,-3146.2,0.00011798,2]
[355439785,1741158627065,-1321.45,0.00011798,2]
[355439786,1741158627090,-500.0,0.00011798,2]
[355439787,1741158627116,-1568.51,0.00011798,2]
[355439788,1741158627144,-1687.93,0.00011798,2]
[355439789,1741158627170,-3237.59,0.00011798,2]
[355439790,1741158627194,-8866.53,0.00011798,2]
[355439791,1741158627218,-673.02,0.00011798,2]
[355439792,1741158627242,-3530.17,0.00011798,2]
[355439793,1741158627265,-14256.07,0.00011798,2]
[355439794,1741158627289,-508.26065931,0.00011798,2]
[355439795,1741158627316,-991.04,0.00011798,2]
[355439796,1741158627339,-5110.49,0.00011798,2]
[355439797,1741158627363,-1849.17,0.00011798,2]
[355439798,1741158627387,-898.11,0.00011798,2]
[355439799,1741158627411,-14458.29,0.00011798,2]
[355439800,1741158627435,-708.35,0.00011798,2]
[355439801,1741158627462,-7246.95,0.00011798,2]
[355439802,1741158627486,-8955.71,0.00011798,2]
[355439803,1741158627513,-40562.64,0.00011798,2]
[355439804,1741158627538,-500.0,0.00011798,2]
[355439805,1741158627563,-1891.9,0.00011798,2]
[355439806,1741158627586,-500.0,0.00011798,2]
[355439807,1741158627610,-1616.61,0.00011798,2]
[355439808,1741158627633,-159.0,0.00011798,3]
[355439809,1741158627660,-186.0,0.00011798,3]
[355439810,1741158627683,-500.0,0.00011799,2]
[355439811,1741158627706,-503.42421183,0.00011799,2]
[355439812,1741158627728,-500.0,0.00011799,2]
[355439813,1741158627751,-500.0,0.00011799,2]
[355439814,1741158627775,-500.0,0.00011799,2]
[355439815,1741158627798,-695.52,0.00011799,2]
[355439816,1741158627821,-1452.41,0.00011799,2]
[355439817,1741158627845,-500.0,0.00011799,2]
[355439818,1741158627869,-500.0,0.00011799,2]
[355439819,1741158627893,-275.87862324,0.00011799,2]
[355439820,1741158627918,-1184.39,0.00011799,2]
[355439821,1741158627942,-2463.09,0.00011799,2]
[355439822,1741158628180,-500.0,0.00011799,2]
[355439823,1741158628206,-500.0,0.00011799,2]
[355439824,1741158628229,-500.0,0.00011799,2]
[355439825,1741158628253,-1439.95,0.00011799,2]
[355439826,1741158628277,-500.0,0.00011799,2]
[355439827,1741158628300,-500.0,0.00011799,2]
[355439828,1741158628324,-500.0,0.00011799,2]
[355439829,1741158628347,-500.0,0.00011799,2]
[355439830,1741158628371,-500.0,0.00011799,2]
[355439831,1741158628395,-500.0,0.00011799,2]
[355439832,1741158628420,-500.0,0.00011799,2]
[355439833,1741158628445,-500.0,0.00011799,2]
[355439834,1741158628475,-500.0,0.00011799,2]
[355439835,1741158628501,-500.0,0.00011799,2]
[355439836,1741158628527,-500.0,0.00011799,2]
[355439837,1741158628552,-1391.87,0.00011799,2]
[355439838,1741158628577,-1042.51,0.00011799,2]
[355439839,1741158628601,-1301.47,0.00011799,2]
[355439840,1741158628625,-500.0,0.00011799,2]
[355439841,1741158628649,-808.51,0.00011799,2]
[355439842,1741158628673,-500.0,0.00011799,2]
[355439843,1741158628697,-500.0,0.00011799,2]
[355439844,1741158628722,-689.59,0.00011799,2]
[355439845,1741158628746,-503.18753595,0.00011799,2]
[355439846,1741158628769,-500.0,0.00011799,2]
[355439847,1741158628793,-597.23,0.00011799,2]
[355439848,1741158628818,-500.0,0.00011799,2]
[355439849,1741158628842,-754.56,0.00011799,2]
[355439850,1741158628866,-506.35,0.00011799,2]
[355439851,1741158628892,-500.0,0.00011799,2]
[355439852,1741158628919,-403.11318872,0.00011799,2]
[355439853,1741158628944,-500.0,0.00011799,2]
[355439854,1741158628970,-500.0,0.00011799,2]
[355439855,1741158628996,-500.0,0.00011799,2]
[355439856,1741158629022,-500.0,0.00011799,2]
[355439857,1741158629047,-1228.06,0.00011799,2]
[355439858,1741158629073,-500.0,0.00011799,2]
[355439859,1741158629098,-500.0,0.00011799,2]
[355439860,1741158629124,-500.0,0.00011799,2]
[355439861,1741158629149,-773.54,0.00011799,2]
[355439862,1741158629173,-500.0,0.00011799,2]
[355439863,1741158629197,-500.0,0.00011799,2]
[355439864,1741158629222,-500.0,0.00011799,2]
[355439865,1741158629246,-500.0,0.00011799,2]
[355439866,1741158629271,-1219.7,0.00011799,2]
[355439867,1741158629295,-500.0,0.00011799,2]
[355439868,1741158629320,-500.0,0.00011799,2]
[355439869,1741158629346,-500.0,0.00011799,2]
[355439870,1741158629371,-500.0,0.00011799,2]
[355439871,1741158629395,-500.0,0.00011799,2]
[355439872,1741158629418,-815.14,0.00011799,2]
[355439873,1741158629442,-744.28,0.00011799,2]
[355439874,1741158629468,-566.06,0.00011799,2]
[355439875,1741158629492,-500.0,0.00011799,2]
[355439876,1741158629517,-500.0,0.00011799,2]
[355439877,1741158629545,-500.0,0.00011799,2]
[355439878,1741158629571,-500.0,0.00011799,2]
[355439879,1741158629595,-500.0,0.00011799,2]
[355439880,1741158629619,-500.0,0.00011799,2]
[355439881,1741158629644,-500.0,0.00011799,2]
[355439882,1741158629668,-500.0,0.00011799,2]
[355439883,1741158629692,-500.0,0.00011799,2]
[355439884,1741158629716,-877.88,0.00011799,2]
[355439885,1741158629741,-372.27433775,0.00011799,2]
[355439886,1741158629764,-500.0,0.00011799,2]
[355439887,1741158629787,-500.0,0.00011799,2]
[355439888,1741158629811,-2794.45,0.00011799,2]
[355439889,1741158629835,-866.24,0.00011799,2]
[355439890,1741158629857,-500.0,0.00011799,2]
[355439891,1741158629880,-500.0,0.00011799,2]
[355439892,1741158629903,-500.0,0.00011799,2]
[355439893,1741158629926,-500.0,0.00011799,2]
[355439894,1741158629951,-500.0,0.00011799,2]
[355439895,1741158629975,-561.50201256,0.00011799,2]
[355439896,1741158629999,-509.7074653,0.00011799,2]
[355439897,1741158630024,-500.0,0.00011799,2]
[355439898,1741158630047,-500.0,0.00011799,2]
[355439899,1741158630072,-879.06,0.00011799,2]
[355439900,1741158630097,-500.0,0.00011799,2]
[355439901,1741158630121,-500.0,0.00011799,2]
[355439902,1741158630144,-615.2,0.00011799,2]
[355439903,1741158630168,-500.0,0.00011799,2]
[355439904,1741158630191,-1461.45,0.00011799,2]
[355439905,1741158630214,-500.0,0.00011799,2]
[355439906,1741158630237,-1690.46,0.00011799,2]
[355439907,1741158630264,-883.12,0.00011799,2]
[355439908,1741158630287,-1161.99,0.00011799,2]
[355439909,1741158630313,-500.0,0.00011799,2]
[355439910,1741158630336,-1607.95,0.00011799,2]
[355439911,1741158630359,-510.5076384,0.00011799,2]
[355439912,1741158630382,-500.0,0.00011799,2]
[355439913,1741158630405,-500.0,0.00011799,2]
[355439914,1741158630432,-1324.28,0.00011799,2]
[355439915,1741158630459,-603.89,0.00011799,2]
[355439916,1741158630483,-1249.64,0.00011799,2]
[355439917,1741158630509,-500.0,0.00011799,2]
[355439918,1741158630534,-500.0,0.00011799,2]
[355439919,1741158630559,-500.0,0.00011799,2]
[355439920,1741158630583,-1092.4,0.00011799,2]
[355439921,1741158630607,-2278.21,0.00011799,2]
[355439922,1741158630635,-500.0,0.00011799,2]
[355439923,1741158630659,-500.0,0.00011799,2]
[355439924,1741158630685,-3058.73,0.00011799,2]
[355439925,1741158630708,-500.0,0.00011799,2]
[355439926,1741158630731,-2372.4,0.00011799,2]
[355439927,1741158630758,-500.0,0.00011799,2]
[355439928,1741158630783,-515.42738718,0.00011799,2]
[355439929,1741158630809,-500.0,0.00011799,2]
[355439930,1741158630836,-500.0,0.00011799,2]
[355439931,1741158630860,-500.0,0.00011799,2]
[355439932,1741158630883,-500.0,0.00011799,2]
[355439933,1741158630907,-500.0,0.00011799,2]
[355439934,1741158630930,-500.0,0.00011799,2]
[355439935,1741158630954,-500.0,0.00011799,2]
[355439936,1741158630978,-500.0,0.00011799,2]
[355439937,1741158631001,-1674.97,0.00011799,2]
[355439938,1741158631024,-1521.85,0.00011799,2]
[355439939,1741158631049,-1265.66,0.00011799,2]
[355439940,1741158631074,-725.87,0.00011799,2]
[355439941,1741158631098,-500.0,0.00011799,2]
[355439942,1741158631122,-3626.66,0.00011799,2]
[355439943,1741158631146,-500.0,0.00011799,2]
[355439944,1741158631169,-4047.25,0.00011799,2]
[355439945,1741158631193,-891.48,0.00011799,2]
[355439946,1741158631220,-1261.39,0.00011799,2]
[355439947,1741158631243,-506.58873821,0.00011799,2]
[355439948,1741158631267,-500.0,0.00011799,2]
[355439949,1741158631291,-500.0,0.00011799,2]
[355439950,1741158631316,-2093.19,0.00011799,2]
[355439951,1741158631341,-508.22500335,0.00011799,2]
[355439952,1741158631367,-1352.15,0.00011799,2]
[355439953,1741158631392,-500.0,0.00011799,2]
[355439954,1741158631417,-233.32376508,0.00011799,2]
[355439955,1741158631442,-500.0,0.00011799,2]
[355439956,1741158631468,-1717.59,0.00011799,2]
[355439957,1741158631495,-500.0,0.00011799,2]
[355439958,1741158631522,-1672.65,0.00011799,2]
[355439961,1741158631551,-556.36541931,0.00011799,2]
[355439965,1741158631579,-500.0,0.00011799,2]
[355439968,1741158631604,-860.83,0.00011799,2]
[355439969,1741158631631,-500.0,0.00011799,2]
[355439970,1741158631657,-1076.25,0.00011799,2]
[355439971,1741158631683,-500.0,0.00011799,2]
[355439972,1741158631720,-500.0,0.00011799,2]
[355439973,1741158631752,-500.0,0.00011799,2]
[355439974,1741158631781,-1034.6,0.00011799,2]
[355439975,1741158631805,-628.98781308,0.00011799,2]
[355439979,1741158635041,-1716.80885001,0.00011794,2]
[355439980,1741158635147,-355270.95813878,0.00011794,2]
[355439981,1741158635223,-9248.83709659,0.00011794,2]
[355439982,1741158635235,-6256.1065,0.00011794,2]
[355439983,1741158635247,-4300.91743727,0.00011794,2]
[355439984,1741158635258,-6127.228,0.00011794,2]
[355439985,1741158635270,-743.20008474,0.00011794,2]
[355439986,1741158635282,-7584.80622634,0.00011794,2]
[355439987,1741158635293,-32115.02825954,0.00011794,2]
[355439988,1741158635307,-518.32839176,0.00011794,2]
[355439991,1741158637633,-868.10545954,0.00011794,2]
[355439992,1741158637644,-953.82884201,0.00011794,2]
[355439993,1741158637656,-2547.105,0.00011794,2]
[355439994,1741158637668,-183972.17538572,0.00011794,2]
[355439995,1741158637679,-271.0,0.00011794,2]
[355439996,1741158637691,-1451.17177158,0.00011794,2]
[355439997,1741158637708,-6806.91827992,0.00011794,2]
[355439998,1741158637720,-2437.59954358,0.00011794,2]
[355439999,1741158637731,-570.27507039,0.00011794,2]
[355440000,1741158637743,-646.53171669,0.00011794,2]
[355440001,1741158637754,-20728.92184322,0.00011794,2]
[355440002,1741158637765,-611.70497818,0.00011794,2]
[355440003,1741158637776,-487.64485839,0.00011794,2]
[355440004,1741158637788,-10865.48604417,0.00011794,2]
[355440005,1741158637800,-5762.24845647,0.00011794,2]
[355440006,1741158637812,-9109.46849774,0.00011794,2]
[355440007,1741158637824,-1572.82199258,0.00011794,2]
[355440008,1741158637839,-417.93362683,0.00011794,2]
[355440009,1741158637851,-252.90102083,0.00011794,2]
[355440010,1741158637864,-1774.37970282,0.00011794,2]
[355440011,1741158637875,-2219.533677,0.00011794,2]
[355440012,1741158637886,-1109.58021,0.00011794,2]
[355440013,1741158637896,-2147.14040106,0.00011794,2]
[355440014,1741158637907,-10736.77896251,0.00011794,2]
[355440015,1741158637919,-3056.6685922,0.00011794,2]
[355440016,1741158637930,-2790.87190735,0.00011794,2]
[355440017,1741158637942,-12642.066,0.00011794,2]
[355440018,1741158637954,-9440.0,0.00011794,2]